Cogmind - Beta 16.1 @@@ ROGUE MODE // 2026.02.14 @ 14:46:32 Player: Jiber Result: Destroyed by KH-PRQ(R) with Subdweller Machine Gun Performance ------------- Evolutions (0) 0 Regions Visited (2) 400 Robots Destroyed (28) 140 Value Destroyed (805) 805 Prototype IDs (0) 0 Alien Tech Used (0) 0 Bonus (0) 0 TOTAL SCORE: 1345 Bonus ------- None Cogmind --------- Core Integrity 0/250 Matter 271/300 Energy 246/250 System Corruption 0% Temperature Cool (2) Movement Walking (120) Location -10/Subcaves Parts ------- > --- POWER (1) -------- Ion Engine > --- PROPULSION (2) --- Aluminum Leg Aluminum Leg > --- UTILITY (2) ------ Medium Storage Unit Signal Interpreter > --- WEAPON (2) ------- Particle Gun > --- INVENTORY (10) --- Aluminum Leg Aluminum Leg Compact Wheel Improved Terrain Scanner Seismic Detector Core Shielding Power Shielding Peak State ------------ > --- POWER ------------ Light Ion Engine > --- PROPULSION ------- Aluminum Leg Aluminum Leg > --- UTILITY ---------- Small Storage Unit Structural Scanner > --- WEAPON ----------- EM Pulse Gun Assault Rifle > --- INVENTORY -------- Light Ion Engine Aluminum Leg Wheel Compact Wheel Improved Terrain Scanner Seismic Detector Power Shielding Grenade Launcher [Rating: 8] Favorites ----------- Power Ion Engine Engine Ion Engine Propulsion Aluminum Leg Leg Aluminum Leg Utility Small Storage Unit Device Structural Scanner Storage Small Storage Unit Processor Signal Interpreter Protection Power Shielding Weapon Assault Rifle Energy Gun EM Pulse Gun Ballistic Gun Assault Rifle Launcher Grenade Launcher Build | -11 -10 -10 ------- Run | Yrd Mat Sub Slots Evolved . | . . . Power . | . . . Propulsion . | . . . Utility . | . . . Weapon . | . . . Parts Attached 20 | 6 13 1 Power 5 | 1 3 1 Engine 5 | 1 3 1 Core . | . . . Reactor . | . . . Propulsion 5 | 2 3 . Treads . | . . . Leg 5 | 2 3 . Wheel . | . . . Hover . | . . . Flight . | . . . Utility 5 | 1 4 . Device 1 | . 1 . Storage 2 | 1 1 . Processor 1 | . 1 . Hackware . | . . . Protection 1 | . 1 . Artifact . | . . . Weapon 5 | 2 3 . Energy Gun 3 | 1 2 . Energy Cannon . | . . . Ballistic Gun 1 | 1 . . Ballistic Cannon . | . . . Launcher 1 | . 1 . Special Weapon . | . . . Impact Weapon . | . . . Slashing Weapon . | . . . Piercing Weapon . | . . . Special Melee Weapon . | . . . Unidentified Prototypes . | . . . Parts Lost 7 | . 6 1 Power 3 | . 2 1 Propulsion . | . . . Utility . | . . . Weapon 4 | . 4 . Highest Loss Streak 3 | . 3 1 To Critical Strikes . | . . . Average Backups 6 | 2 7 7 Power . | . . . Propulsion 2 | 1 2 3 Utility 2 | . 2 4 Weapon . | . . . Tool/Special . | . . . Unused Backups 8 | . 2 6 Power . | . . . Propulsion 5 | . 2 3 Utility 3 | . . 3 Weapon . | . . . Tool/Special . | . . . Average Slot Usage (%) 92 | . 93 85 Engine 13 | . 13 14 Leg 28 | . 28 28 Device 7 | . 8 . Storage 14 | . 14 14 Processor 1 | . . 14 Protection 1 | . 1 . Energy Gun 10 | . 10 14 Ballistic Gun 9 | . 10 . Launcher 3 | . 4 . Peak Build Rating 8 | 6 8 8 Average Rating 7 | 4 7 7 On Entrance 4 | . 6 8 Avg Prop Armor Cover (%) . | . . . Naked Turns . | . . . Heaviest Build 21 | 14 21 18 Greatest Support 20 | 20 20 20 Greatest Overweight (x) 1 | . 1 . Average Overweight (x) . | . . . Largest Inventory Capacity 10 | 8 10 10 Average Capacity 8 | 6 8 10 Most Carried 9 | 5 9 8 Average Carried 6 | 3 7 7 Final Capacity 10 | 8 10 10 Final Carried 8 | 5 8 7 Class Distribution -------------------- 100% | Mutant Dominant Class ---------------- Mutant | -10/Materials Mutant | -10/Subcaves Resources | -11 -10 -10 ----------- Run | Yrd Mat Sub Matter Collected 695 | 275 420 . Remotely . | . . . Salvage Created 894 | 107 787 . Parts 51 | 8 43 . Haulers Intercepted 1 | . 1 . Recyclers Shooed . | . . . Parts Field Recycled . | . . . Retrieved Matter . | . . . Parts Self-Destructed . | . . . Prevented . | . . . Parts Restored . | . . . Kills | -11 -10 -10 ------- Run | Yrd Mat Sub Combat Hostiles Destroyed 19 | . 19 . Guns 9 | . 9 . AOE 10 | . 10 . Classes Destroyed 7 | 2 5 . Worker 1 | . 1 . Tunneler 2 | 2 . . Hauler 1 | . 1 . Recycler 1 | 1 . . Operator 1 | . 1 . Watcher 3 | . 3 . Grunt 19 | . 19 . Best Kill Streak 4 | 2 4 . Combat Bots Only 4 | . 4 . Max Kills in Single Turn 2 | 1 2 . Gunslinging . | . . . Exploded 2 | . 2 . Melee . | . . . Uniques/NPCs Destroyed . | . . . Combat | -11 -10 -10 -------- Run | Yrd Mat Sub Hostile Shots Fired 123 | . 94 29 Missed 46 | . 32 14 Hits 77 | . 62 15 Projectile 77 | . 62 15 Critical Strikes 1 | . 1 . Damage Taken 1146 | . 834 312 Core 262 | . 154 108 Absorbed by Shields . | . . . Redirected to Shielding 12 | . 12 . Core Remaining (%) 100 | 100 . . Volleys Fired 78 | 5 72 1 Largest 2 | 2 2 1 Hottest 70 | 60 70 65 Shots Fired 131 | 10 120 1 Gun 113 | 10 102 1 Cannon . | . . . Launcher 18 | . 18 . Special . | . . . Kinetic 52 | 5 47 . Thermal 6 | . 5 1 Explosive 18 | . 18 . Electromagnetic 55 | 5 50 . Robot Hit Streak 8 | 3 8 . Robot Miss Streak 5 | 1 5 1 Penetration Max . | . . . Secondary Targets . | . . . Shots Hit Robots 83 | 5 78 . Core Hits 49 | 3 46 . Critical Kills 1 | . 1 . Critical Parts Destroyed . | . . . Critical Strikes 2 | . 2 . Destroy 1 | . 1 . Corrupt 1 | . 1 . Melee Attacks . | . . . Impact . | . . . Slashing . | . . . Piercing . | . . . Sneak Attacks . | . . . Combat Hostiles . | . . . Follow-up Attacks . | . . . Damage Inflicted 1976 | 85 1891 . Guns 934 | 52 882 . Cannons . | . . . Explosions 1042 | 33 1009 . Melee . | . . . Ramming . | . . . Kinetic 393 | . 393 . Thermal 109 | 33 76 . Explosive 1009 | . 1009 . Electromagnetic 465 | 52 413 . Impact . | . . . Slashing . | . . . Piercing . | . . . Highest Corruption . | . . . Average Corruption . | . . . Corruption Purged . | . . . Corruption Blocked . | . . . Overload Shots . | . . . Overflow Damage . | . . . Projectiles . | . . . Explosions . | . . . Melee . | . . . Knockbacks . | . . . Impact . | . . . Kinetic . | . . . Secondary . | . . . Self-Inflicted Damage 39 | . 39 . Shots 2 | . 2 . Rammed . | . . . Targets Rammed 2 | . 2 . Kicked 2 | . 2 . Crushed . | . . . Highest Temperature 138 | . 138 . Average Temperature 24 | . 24 . Received Heat Transfer 447 | . 435 12 Siege Activations . | . . . Martial Activations . | . . . Shielding Activations . | . . . Robots Disrupted . | . . . Combat Hostiles . | . . . Robots Corrupted . | . . . Combat Hostiles . | . . . Parts Fried . | . . . Impact Corruptions . | . . . Robots Melted . | . . . Combat Hostiles . | . . . Parts Melted 2 | . 2 . Heat Transferred 185 | . 185 . Parts Sabotaged . | . . . Parts Stolen . | . . . Parts Stripped . | . . . Power Chain Reactions 1 | 1 . . Alert | -11 -10 -10 ------- Run | Yrd Mat Sub Maximum Alert Level 1 | . 1 . Low Security (%) 88 | 100 87 . Level 1 11 | . 12 . Level 2 . | . . . Level 3 . | . . . Level 4 . | . . . Level 5 . | . . . High Security . | . . . Max Security . | . . . Peak Influence 243 | 10 243 . Initial . | . . . Average 78 | 2 84 . Influence Increases 668 | 15 653 . Destroy 0b10 Robot/C 380 | . 380 . Destroy 0b10 Robot/NC 45 | 15 30 . Destroy Leader 88 | . 88 . Successful Hack 19 | . 19 . Disable Machine 30 | . 30 . Destroy Structure 76 | . 76 . Lose Combat Pursuer 30 | . 30 . Influence Decreases 631 | 15 446 170 Entered New Map 100 | . . 100 Time Decay 461 | 15 386 60 Lost Part 70 | . 60 10 Squads Dispatched 6 | . 6 . Investigation 4 | . 4 . Extermination . | . . . Reinforcement 2 | . 2 . Assault . | . . . Garrison . | . . . Intercept . | . . . Searches Triggered . | . . . Construction Impeded . | . . . Haulers Reinforced . | . . . Active Scanning Responses . | . . . Cargo Convoy Interrupts . | . . . Stealth | -11 -10 -10 --------- Run | Yrd Mat Sub Distress Signals . | . . . Communications Jammed . | . . . Distress Signals . | . . . Times Spotted 32 | . 29 3 Peak Tracking Total 5 | . 5 2 Tactical Retreats 1 | . 1 . Traps | -11 -10 -10 ------- Run | Yrd Mat Sub Traps Triggered 2 | . 2 . Indirectly . | . . . Trap Hack Attempts . | . . . Triggered . | . . . Disarmed . | . . . Reprogrammed . | . . . Reused . | . . . Traps Extracted . | . . . Installed . | . . . Triggered . | . . . Machines | -11 -10 -10 ---------- Run | Yrd Mat Sub Machines Disabled 2 | . 2 . Max in Single Turn 1 | . 1 . Machines Repaired . | . . . Machines Dismantled . | . . . Machines Sabotaged . | . . . Overloaded Fab Kills . | . . . Hacking | -11 -10 -10 --------- Run | Yrd Mat Sub Machines Accessed 3 | . 3 . Terminals 3 | . 3 . Fabricators . | . . . Repair Stations . | . . . Recycling Units . | . . . Scanalyzers . | . . . Garrison Access . | . . . Total Hacks 9 | . 9 . Successful 3 | . 3 . Failed 6 | . 6 . Catastrophic 1 | . 1 . Database Lockouts . | . . . Manual 5 | . 5 . Terminals 9 | . 9 . Fabricators . | . . . Repair Stations . | . . . Recycling Units . | . . . Scanalyzers . | . . . Garrison Access . | . . . Terminal Hacks 2 | . 2 . Robot Analysis 1 | . 1 . Alert Level 1 | . 1 . Fabricator Hacks . | . . . Repair Station Hacks . | . . . Recycling Unit Hacks . | . . . Scanalyzer . | . . . Garrison Access Hacks . | . . . Unauthorized Hacks 1 | . 1 . Terminals 1 | . 1 . Botnet 1 | . 1 . Fabricators . | . . . Repair Stations . | . . . Recycling Units . | . . . Scanalyzers . | . . . Garrison Access . | . . . Data Cores Recovered . | . . . Used . | . . . Hacking Detections 3 | . 3 . Full Trace Events 2 | . 2 . Feedback Events . | . . . Feedback Blocked . | . . . Robot Schematics Acquired . | . . . Robots Built . | . . . Authchips . | . . . Time . | . . . Total Robot Build Rating . | . . . Part Schematics Acquired . | . . . Parts Built . | . . . Authchips . | . . . Time . | . . . Total Part Build Rating . | . . . Part Studies Acquired . | . . . Parts Repaired . | . . . Time . | . . . Parts Recycled . | . . . Recycled Matter . | . . . Retrieved Matter . | . . . Retrieved Components . | . . . Parts Scanalyzed . | . . . Part Schematics Acquired . | . . . Parts Damaged . | . . . Bothacking | -11 -10 -10 ------------ Run | Yrd Mat Sub Used RIF Installer . | . . . Robots Hacked . | . . . Non-combat . | . . . Combat . | . . . Robot Hacks Applied . | . . . Relay Couplers Released . | . . . Fabnet Peak Effective % . | . . . Robots Rewired . | . . . Allies Hacked . | . . . Hacks Repelled . | . . . Allies | -11 -10 -10 -------- Run | Yrd Mat Sub Total Allies . | . . . Largest Group . | . . . Highest-Rated Group . | . . . Highest-Rated Ally . | . . . Total Orders . | . . . Ally Attacks . | . . . Total Damage . | . . . Kills . | . . . Allies Corrupted . | . . . Allies Melted . | . . . Intel | -11 -10 -10 ------- Run | Yrd Mat Sub Active Infowar (turns) 642 | . 642 . Structural 642 | . 642 . Robot Analysis Total 1 | . 1 . Derelict Logs Recovered . | . . . Drone Launches . | . . . Drone Recoveries . | . . . Exploration | -11 -10 -10 ------------- Run | Yrd Mat Sub Turns Passed 1207 | 84 1002 121 Spaces Moved 724 | 46 579 99 Core 4 | 4 . . Treads . | . . . Legs 720 | 42 579 99 Wheels . | . . . Hover . | . . . Flight . | . . . Fastest Speed 50 | 50 120 120 Average Speed 126 | 113 128 120 Slowest Speed 190 | 120 190 120 Overloaded Moves . | . . . Propulsion Burnouts . | . . . Robots Hopped . | . . . Potential Cave-ins . | . . . Cave-ins Triggered . | . . . Exploration Rate (%) 30 | 3 76 12 Regions Visited 2 Branch Regions 1 Pre-discovered Areas . | . . . Known Exits Taken 1 | . 1 . Unknown Exits Taken 1 | 1 . . Scrap Searched . | . . . Spaces Dug . | . . . Terrain Destroyed 86 | 2 84 . Melee . | . . . Projectile . | . . . AOE 86 | 2 84 . Terrain Rammed . | . . . Walls Destroyed . | . . . Machines Disabled . | . . . Actions | -11 -10 -10 --------- Run | Yrd Mat Sub Total 884 | 67 716 101 Wait 27 | . 27 . Move 722 | 45 578 99 Hop . | . . . Pick Up 24 | 11 13 . Fast Attach . | . . . Attach 14 | 6 7 1 Detach . | . . . Swap 9 | . 9 . Drop 8 | . 8 . Fire 78 | 5 72 1 Melee . | . . . Ram . | . . . Kick 2 | . 2 . Crush . | . . . Escape Stasis . | . . . Rewire . | . . . Trap . | . . . Miscellaneous . | . . . Route ------- -11/Scrapyard -10/Materials (discovered 3 exits: [*Mat] / [*Min] / *Sub) -10/Subcaves (discovered 1 exit: *Mat) History --------- Turn | Location | Event 16 | -11/Scrapyard | Discovered new exit (range 15) 85 | -11/Scrapyard | Entered Materials 153 | -10/Materials | Discovered new exit (range 16) 178 | -10/Materials | Discovered new exit (range 8) 336 | -10/Materials | Build established: Mutant 476 | -10/Materials | Discovered new exit (range 12) 837 | -10/Materials | Core integrity fell below 50% 991 | -10/Materials | Lost 3 parts (1p2w) 1084 | -10/Materials | Identified exit to Subcaves 1087 | -10/Materials | Entered Subcaves 1180 | -10/Subcaves | Discovered new exit (range 7) 1186 | -10/Subcaves | Identified exit to Materials 1201 | -10/Subcaves | Core integrity fell below 20% 1208 | -10/Subcaves | Destroyed by KH-PRQ(R) with Subdweller Machine Gun Last Messages --------------- 00979_ U-05 Engineer lays Concrete. 00979_ Acquired Aluminum Leg. 00980_ K-01 Serf collects debris. 00980_ U-05 Engineer lays Concrete. 00981_ U-05 Engineer builds a Wall. 00981_ U-05 Engineer lays Concrete. 00981_ Acquired 51 matter. 00984_ Acquired Ion Engine. 00985_ Acquired 34 matter. 01039_ U-05 Engineer lays Concrete. 01040_ U-05 Engineer builds a Wall. 01052_ U-05 Engineer lays Concrete. 01081_ Dropped Aluminum Leg. 01084_ EXIT=IDENTIFIED: SUBCAVES LOCATION=SUBCAVES AMBIENT_HEAT=-10 GOAL=ESCAPE 01100_ Lgt. Ion Engine destroyed. 01180_ EXIT=FOUND 01186_ EXIT=IDENTIFIED: MATERIALS Map ----- +----------------------------------------------------+ | | | | | | | | | | | | | ?????????????????????????????????????????????????? | | ?????????????????????????????????????????????????? | | ?????????????????????????????????????????????????? | | ?????????????????????????????????????????????????? | | ?????????????????????????????????????????????????? | | ?????????????????????????????????????????????????? | | ?????????????????????????????????????????????????? | | ?????????????????????????????????????????????????? | | ?????????????????????????????????????????????????? | | ?????????????????????????????????????????????????? | | ?????????????????????????????????????????????????? | | ?????????????????????????????????????????????????? | | ?????????????????????????????????????????????????? | | ?????????????????????????????????????????????????? | | ????????????????????????????###??????????????????? | | ???????????????????????????## #???#"#????????????? | | ??????????????????????????## ##?## ######???????? | | ?????????????????##???????# ## # # ##??????? | | ???????????????###"######## ### ####???? | | ?????????????###"""" ##@# ##??? | | ????????????? """""" #??? | | ????????????? "" " #???? | | ?????????????#"" " ## < ##??????? | | ?????????????# ## " ### R #??????? | | ????????????????#""## ## ##### ##??????? | | ????????????????#"??##### ####??# #????? | | ????????????????"???????#### ##?????## #???# | | ???????????????????????????####???????# ##??# | | ??????????????????????????????????????# ### #? | | ????????????????????????????????####### #?? | | ????????????????????????????????? "## ####?? | | ??????????????????????????????????# #" #????? | | ??????????????????????????????????# #????? | | ??????????????????????????????????# #" #????? | | ??????????????????????????????????### ##????? | | ??????????????????????????????????# ##?????? | | ??????????????????????????????????# ####????? | | ??????????????????????????????????## ## ##???? | | ???????????????????????????????????# #? ? | | ??????????????????????????????????## ####? | | ??????????????????????????????????# #???# | | ??????????????????????????????????# ##?# | | ??????????????????????????????????## #? | | ???????????????????????????????????# ###? | +----------------------------------------------------+ Best States ------------- Heat Dissipation 25 Energy Generation 10 Energy Capacity 250 Matter Stores 300 Matter Capacity 300 Sight Range 16 Terrain Scan Density 10 Power Shielding 33 Evasion (%) 55 Item Schematics ----------------- None Robot Schematics ------------------ None Fabricated ------------ Nothing Repaired ---------- Nothing Studied --------- None Alien Tech Used ----------------- None Achievements -------------- None Challenges ------------ None Game ------ Seed PrecisionDirectedGun Manual? 0 Play Time 00:12:02 Cumulative 54.6 hours Start 2026.02.14 @ 14:35:16 End 2026.02.14 @ 14:46:32 Sessions 1 Manual Loads 0 Difficulty Rogue Special Mode None Game No. 70 Rogue 70 Adventurer 0 Explorer 0 Win Type - Total 1 Types 0/0/1/0/0/0/0/0/0/0 Lore% 30 Gallery% 38 Achievement% 28 Wizard Run 0 Options --------- Layout 1 ASCII 0 Keyboard 0 Movement Mouse Keybinds 0 Fullscreen 2 Font 32/SmallcapsGlow Map View 50x35 Zoom Use 0% Tactical HUD 1 Map Filters NONE Filters NONE Steam 1 RUN: 3e9650fe-2211-4d0a-94ef-b55e955aacf3